[Event "33rd Pula Open 2019"]
[Site "Pula"]
[Date "2019.06.27"]
[Round "7.10"]
[White "Bochnicka, Vladimir"]
[Black "Jelen, Igor"]
[Result "0-1"]
[ECO "B30"]
[WhiteElo "2169"]
[BlackElo "2353"]
[Annotator "NA"]
[PlyCount "78"]
[EventDate "2019.06.22"]
[EventType "swiss"]
[EventCountry "CRO"]
[SourceTitle "playchess.com"]
[Source "ChessBase"]
[SourceQuality "1"]
[TimeControl "5400+30"]

1. e4 {[%emt 0:00:30]} c5 {[%emt 0:00:30]} 2. Nf3 {[%emt 0:00:00]} Nc6 {[%emt 0:00:00]} 3. Nc3 {[%emt 0:00:00]} e5 {[%emt 0:00:00]} 4. Bc4 {[%emt 0:00:00]} Be7 {[%emt 0:00:30]} 5. d3 {[%emt 0:00:00]} Nf6 {[%emt 0:00:30]} 6. O-O {[%emt 0:00:30]} O-O {[%emt 0:00:30]} 7. Ng5 {[%emt 0:00:30]} h6 {[%emt 0:01:30]} 8. f4 {[%emt 0:00:30]} exf4 {[%emt 0:04:30]} 9. Nf3 {[%emt 0:00:30]} d6 {[%emt 0:00:30]} 10. Bxf4 {[%emt 0:00:30]} Be6 {[%emt 0:00:00]} 11. Nd5 {[%emt 0:00:30]} Nb4 {[%emt 0:02:00]} 12. Nxe7+ {[%emt 0:16:30]} Qxe7 {[%emt 0:00:30]} 13. Bxe6 {[%emt 0:00:30]} fxe6 {[%emt 0:00:30]} 14. Bxd6 {[%emt 0:01:30]} Qxd6 {[%emt 0:00:30]} 15. e5 {[%emt 0:00:30]} Qd5 {[%emt 0:02:30]} 16. exf6 {[%emt 0:00:00]} Rxf6 {[%emt 0:00:00]} 17. Re1 {[%emt 0:06:00]} Nc6 {[%emt 0:17:00]} 18. Re4 {[%emt 0:06:30]} Raf8 {[%emt 0:26:30]} 19. Qe2 {[%emt 0:07:30]} Ne7 {[%emt 0:09:30]} 20. Re5 {[%emt 0:05:30]} Qd6 {[%emt 0:02:30]} 21. Qe3 {[%emt 0:09:30]} Nd5 {[%emt 0:03:30]} 22. Qe4 {[%emt 0:01:30]} Nf4 {[%emt 0:01:30]} 23. Rf1 {[%emt 0:05:30]} Ng6 {[%emt 0:11:24]} 24. Rh5 {[%emt 0:00:30]} Qb6 {[%emt 0:00:48]} 25. Kh1 {[%emt 0:06:30]} Qxb2 {[%emt 0:01:35]} 26. Rxc5 {[%emt 0:00:30]} b6 {[%emt 0:00:52]} 27. Rc6 {[%emt 0:05:30]} Qxa2 {[%emt 0:00:24]} 28. Re1 {[%emt 0:00:30]} Nf4 {[%emt 0:00:23]} 29. Nd4 {[%emt 0:06:30]} Qa5 {[%emt 0:06:34]} 30. h3 {[%emt 0:03:08]} Re8 {[%emt 0:00:33]} 31. Rf1 {[%emt 0:08:43]} Nh5 {[%emt 0:00:53]} 32. Rf3 {[%emt 0:00:46]} Rxf3 {[%emt 0:00:42]} 33. Qxf3 {[%emt 0:00:18]} Qe1+ {[%emt 0:01:12]} 34. Kh2 {[%emt 0:00:04]} Qe5+ {[%emt 0:00:11]} 35. g3 {[%emt 0:00:31]} Qxd4 {[%emt 0:00:38]} 36. Qxh5 {[%emt 0:00:13]} Qf2+ {[%emt 0:00:07]} 37. Kh1 {[%emt 0:00:05]} Qf1+ {[%emt 0:00:14]} 38. Kh2 {[%emt 0:00:03]} Rf8 {[%emt 0:00:12]} 39. g4 {[%emt 0:00:34]} Qe2+ {[%emt 0:00:08]} 0-1

[Event "33rd Pula Open 2019"]
[Site "Pula"]
[Date "2019.06.27"]
[Round "7.11"]
[White "Kyc, Jerzy"]
[Black "Blagojevic, Marijan"]
[Result "1-0"]
[ECO "B44"]
[WhiteElo "2279"]
[BlackElo "2192"]
[Annotator "NA"]
[PlyCount "77"]
[EventDate "2019.06.22"]
[EventType "swiss"]
[EventCountry "CRO"]
[SourceTitle "playchess.com"]
[Source "ChessBase"]
[SourceQuality "1"]
[TimeControl "5400+30"]

1. e4 {[%emt 0:00:30]} c5 {[%emt 0:00:30]} 2. Nf3 {[%emt 0:00:00]} Nc6 {[%emt 0:01:30]} 3. d4 {[%emt 0:00:00]} cxd4 {[%emt 0:00:00]} 4. Nxd4 {[%emt 0:00:00]} e6 {[%emt 0:00:00]} 5. Nb5 {[%emt 0:00:00]} d6 {[%emt 0:00:30]} 6. c4 {[%emt 0:00:30]} a6 {[%emt 0:02:30]} 7. N5a3 {[%emt 0:00:00]} Nf6 {[%emt 0:01:30]} 8. Nc3 {[%emt 0:00:00]} Be7 {[%emt 0:06:30]} 9. Be2 {[%emt 0:00:00]} O-O {[%emt 0:00:30]} 10. O-O {[%emt 0:00:00]} Qc7 {[%emt 0:00:30]} 11. Be3 {[%emt 0:00:00]} Nd7 {[%emt 0:03:30]} 12. Rc1 {[%emt 0:00:00]} Nc5 {[%emt 0:01:30]} 13. f4 {[%emt 0:00:30]} b6 {[%emt 0:03:30]} 14. Bf3 {[%emt 0:08:30]} Bb7 {[%emt 0:01:30]} 15. Qd2 {[%emt 0:00:30]} Rac8 {[%emt 0:10:30]} 16. g4 {[%emt 0:03:30]} Qb8 {[%emt 0:03:30]} 17. Nc2 {[%emt 0:04:30]} Na5 {[%emt 0:02:30]} 18. Qe2 {[%emt 0:00:30]} Nd7 {[%emt 0:03:30]} 19. Na3 {[%emt 0:00:30]} Rfe8 {[%emt 0:04:30]} 20. g5 {[%emt 0:06:30]} d5 {[%emt 0:12:30]} 21. cxd5 {[%emt 0:00:30]} exd5 {[%emt 0:06:30]} 22. Bg4 {[%emt 0:00:30]} Rcd8 {[%emt 0:01:30]} 23. e5 {[%emt 0:03:30]} b5 {[%emt 0:03:30]} 24. Nc2 {[%emt 0:04:30]} Nc4 {[%emt 0:00:30]} 25. Bd4 {[%emt 0:03:30]} Bc5 {[%emt 0:02:30]} 26. Bxd7 {[%emt 0:02:30]} Bxd4+ {[%emt 0:00:30]} 27. Nxd4 {[%emt 0:00:00]} Rxd7 {[%emt 0:00:30]} 28. Qf2 {[%emt 0:00:00]} b4 {[%emt 0:01:30]} 29. Na4 {[%emt 0:00:30]} Rc7 {[%emt 0:00:30]} 30. b3 {[%emt 0:02:30]} Na5 {[%emt 0:02:30]} 31. Nf5 {[%emt 0:07:30]} Bc6 {[%emt 0:03:30]} 32. Nc5 {[%emt 0:02:30]} Bb5 {[%emt 0:00:30]} 33. Rfd1 {[%emt 0:00:30]} Rd8 {[%emt 0:01:30]} 34. Nd6 {[%emt 0:01:30]} Qa8 {[%emt 0:00:30]} 35. Qd4 {[%emt 0:00:30]} Be2 {[%emt 0:04:24]} 36. Re1 {[%emt 0:01:30]} Bf3 {[%emt 0:01:13]} 37. Qxb4 {[%emt 0:00:00]} Nc6 {[%emt 0:06:30]} 38. Qb6 {[%emt 0:00:00]} Ra7 {[%emt 0:00:24]} 39. Ncb7 {[%emt 0:00:30]} 1-0

[Event "33rd Pula Open 2019"]
[Site "Pula"]
[Date "2019.06.27"]
[Round "7.12"]
[White "Klaric, Zoran"]
[Black "Petran, Peter"]
[Result "0-1"]
[ECO "A03"]
[WhiteElo "2086"]
[BlackElo "2246"]
[Annotator "NA"]
[PlyCount "90"]
[EventDate "2019.06.22"]
[EventType "swiss"]
[EventCountry "CRO"]
[SourceTitle "playchess.com"]
[Source "ChessBase"]
[SourceQuality "1"]
[TimeControl "5400+30"]

1. f4 {[%emt 0:00:30]} c5 {[%emt 0:01:30]} 2. b3 {[%emt 0:00:30]} Nf6 {[%emt 0:00:30]} 3. Nf3 {[%emt 0:00:30]} Nc6 {[%emt 0:01:30]} 4. Bb2 {[%emt 0:00:00]} d5 {[%emt 0:01:30]} 5. e3 {[%emt 0:01:00]} a6 {[%emt 0:02:30]} 6. Be2 {[%emt 0:00:30]} g6 {[%emt 0:00:30]} 7. O-O {[%emt 0:02:30]} Bg7 {[%emt 0:00:30]} 8. Ne5 {[%emt 0:01:30]} Bd7 {[%emt 0:00:30]} 9. d3 {[%emt 0:02:30]} O-O {[%emt 0:00:00]} 10. Nd2 {[%emt 0:00:30]} Nxe5 {[%emt 0:06:00]} 11. fxe5 {[%emt 0:06:30]} Ne8 {[%emt 0:00:00]} 12. Bf3 {[%emt 0:06:30]} Nc7 {[%emt 0:03:00]} 13. c4 {[%emt 0:01:30]} Be6 {[%emt 0:00:30]} 14. Qe2 {[%emt 0:06:30]} Rb8 {[%emt 0:00:00]} 15. d4 {[%emt 0:08:30]} b5 {[%emt 0:08:00]} 16. cxd5 {[%emt 0:07:30]} Nxd5 {[%emt 0:00:30]} 17. Ne4 {[%emt 0:01:30]} cxd4 {[%emt 0:00:30]} 18. exd4 {[%emt 0:00:30]} Bf5 {[%emt 0:06:30]} 19. Nc5 {[%emt 0:01:30]} a5 {[%emt 0:02:30]} 20. g4 {[%emt 0:01:30]} Be6 {[%emt 0:00:30]} 21. Qd2 {[%emt 0:08:30]} Qb6 {[%emt 0:02:30]} 22. Rac1 {[%emt 0:01:30]} Rbd8 {[%emt 0:02:30]} 23. Rfe1 {[%emt 0:02:30]} b4 {[%emt 0:03:30]} 24. g5 {[%emt 0:01:30]} Bf5 {[%emt 0:02:30]} 25. Qe2 {[%emt 0:01:30]} e6 {[%emt 0:02:30]} 26. h4 {[%emt 0:01:30]} Rfe8 {[%emt 0:00:00]} 27. Na4 {[%emt 0:01:30]} Qa7 {[%emt 0:01:00]} 28. Rc6 {[%emt 0:00:30]} Nf4 {[%emt 0:03:30]} 29. Qe3 {[%emt 0:02:30]} Nd3 {[%emt 0:00:30]} 30. Rd1 {[%emt 0:00:30]} Nxe5 {[%emt 0:00:30]} 31. Rc5 {[%emt 0:02:30]} Nxf3+ {[%emt 0:02:30]} 32. Qxf3 {[%emt 0:00:00]} Rd7 {[%emt 0:06:30]} 33. Qc6 {[%emt 0:03:00]} Red8 {[%emt 0:04:30]} 34. Qb6 {[%emt 0:02:30]} Qa8 {[%emt 0:01:30]} 35. d5 {[%emt 0:01:30]} Rxd5 {[%emt 0:06:30]} 36. Rcxd5 {[%emt 0:02:30]} exd5 {[%emt 0:03:30]} 37. Bxg7 {[%emt 0:00:30]} Kxg7 {[%emt 0:00:30]} 38. Qf6+ {[%emt 0:00:30]} Kg8 {[%emt 0:00:30]} 39. h5 {[%emt 0:00:30]} Qb8 {[%emt 0:05:30]} 40. Kg2 {[%emt 0:03:59]} Be4+ {[%emt 0:00:00]} 41. Kh3 {[%emt 0:00:19]} gxh5 {[%emt 0:00:00]} 42. Rf1 {[%emt 0:00:41]} Qc8+ {[%emt 0:00:30]} 43. Kh2 {[%emt 0:00:23]} Qc7+ {[%emt 0:01:30]} 44. Kh3 {[%emt 0:00:44]} Qd7+ {[%emt 0:00:30]} 45. Kh2 {[%emt 0:00:11]} Rc8 {[%emt 0:03:03]} 0-1

[Event "33rd Pula Open 2019"]
[Site "Pula"]
[Date "2019.06.27"]
[Round "7.13"]
[White "Jurman, Pjerino"]
[Black "Jazdanovs, Aleksandrs"]
[Result "0-1"]
[ECO "A57"]
[WhiteElo "1936"]
[BlackElo "2232"]
[Annotator "NA"]
[PlyCount "92"]
[EventDate "2019.06.22"]
[EventType "swiss"]
[EventCountry "CRO"]
[SourceTitle "playchess.com"]
[Source "ChessBase"]
[SourceQuality "1"]
[TimeControl "5400+30"]

1. d4 {[%emt 0:00:30]} Nf6 {[%emt 0:01:30]} 2. c4 {[%emt 0:00:30]} c5 {[%emt 0:00:00]} 3. d5 {[%emt 0:00:30]} b5 {[%emt 0:00:00]} 4. Nc3 {[%emt 0:01:30]} b4 {[%emt 0:00:30]} 5. Na4 {[%emt 0:00:30]} e6 {[%emt 0:00:30]} 6. Bg5 {[%emt 0:00:30]} h6 {[%emt 0:00:30]} 7. Bxf6 {[%emt 0:01:30]} Qxf6 {[%emt 0:04:30]} 8. e4 {[%emt 0:00:30]} Qg6 {[%emt 0:01:30]} 9. Qd3 {[%emt 0:01:30]} d6 {[%emt 0:02:30]} 10. Ne2 {[%emt 0:00:30]} e5 {[%emt 0:01:30]} 11. b3 {[%emt 0:01:30]} Nd7 {[%emt 0:00:30]} 12. Nb2 {[%emt 0:00:30]} Be7 {[%emt 0:01:30]} 13. g3 {[%emt 0:00:00]} O-O {[%emt 0:02:30]} 14. Nd1 {[%emt 0:00:00]} Nf6 {[%emt 0:02:30]} 15. Bg2 {[%emt 0:00:30]} Nh5 {[%emt 0:04:30]} 16. Ne3 {[%emt 0:03:30]} Nf4 {[%emt 0:01:30]} 17. gxf4 {[%emt 0:00:30]} exf4 {[%emt 0:00:00]} 18. Nxf4 {[%emt 0:01:30]} Qf6 {[%emt 0:01:00]} 19. O-O {[%emt 0:25:30]} Qxf4 {[%emt 0:00:00]} 20. Rfe1 {[%emt 0:00:30]} Bf6 {[%emt 0:00:00]} 21. Rac1 {[%emt 0:01:30]} Bc3 {[%emt 0:02:30]} 22. Rxc3 {[%emt 0:05:30]} bxc3 {[%emt 0:00:30]} 23. Qxc3 {[%emt 0:00:30]} Re8 {[%emt 0:01:30]} 24. b4 {[%emt 0:01:30]} cxb4 {[%emt 0:05:30]} 25. Qxb4 {[%emt 0:00:00]} Bd7 {[%emt 0:00:30]} 26. c5 {[%emt 0:00:00]} Reb8 {[%emt 0:00:30]} 27. Qa3 {[%emt 0:00:30]} dxc5 {[%emt 0:01:30]} 28. Nc4 {[%emt 0:09:30]} Rb4 {[%emt 0:01:30]} 29. Qc3 {[%emt 0:02:30]} Rab8 {[%emt 0:00:30]} 30. Ne5 {[%emt 0:01:30]} Qf6 {[%emt 0:02:30]} 31. f4 {[%emt 0:00:30]} Rb1 {[%emt 0:01:30]} 32. Qg3 {[%emt 0:02:30]} Ba4 {[%emt 0:01:30]} 33. Rf1 {[%emt 0:07:30]} Qa6 {[%emt 0:01:30]} 34. Ng4 {[%emt 0:01:30]} Rxf1+ {[%emt 0:00:30]} 35. Bxf1 {[%emt 0:00:30]} Rb1 {[%emt 0:00:30]} 36. Ne3 {[%emt 0:00:30]} Bb5 {[%emt 0:01:30]} 37. Qf3 {[%emt 0:00:00]} Bxf1 {[%emt 0:01:30]} 38. Nxf1 {[%emt 0:00:00]} Qxa2 {[%emt 0:01:30]} 39. e5 {[%emt 0:01:30]} Qb3 {[%emt 0:01:30]} 40. Qg4 {[%emt 0:04:30]} Qe3+ {[%emt 0:00:30]} 41. Kg2 {[%emt 0:00:30]} Qe4+ {[%emt 0:00:30]} 42. Kg1 {[%emt 0:00:30]} Qd4+ {[%emt 0:00:30]} 43. Kg2 {[%emt 0:00:30]} Qxd5+ {[%emt 0:00:30]} 44. Kf2 {[%emt 0:00:30]} Qa2+ {[%emt 0:00:30]} 45. Kg1 {[%emt 0:00:00]} Qa6 {[%emt 0:00:30]} 46. Qf3 {[%emt 0:01:00]} Qxf1+ {[%emt 0:00:30]} 0-1

[Event "33rd Pula Open 2019"]
[Site "Pula"]
[Date "2019.06.27"]
[Round "7.14"]
[White "Rubil, Marko"]
[Black "Jakrlin, Mihael"]
[Result "1-0"]
[ECO "C11"]
[WhiteElo "2226"]
[BlackElo "1925"]
[Annotator "NA"]
[PlyCount "95"]
[EventDate "2019.06.22"]
[EventType "swiss"]
[EventCountry "CRO"]
[SourceTitle "playchess.com"]
[Source "ChessBase"]
[SourceQuality "1"]
[TimeControl "5400+30"]

1. e4 {[%emt 0:00:30]} Nf6 {[%emt 0:00:30]} 2. Nc3 {[%emt 0:03:30]} d5 {[%emt 0:00:00]} 3. e5 {[%emt 0:04:30]} Nfd7 {[%emt 0:00:00]} 4. d4 {[%emt 0:01:30]} c5 {[%emt 0:00:30]} 5. dxc5 {[%emt 0:14:30]} e6 {[%emt 0:01:30]} 6. f4 {[%emt 0:00:30]} Bxc5 {[%emt 0:06:30]} 7. Qf3 {[%emt 0:01:30]} Nc6 {[%emt 0:04:30]} 8. Bd3 {[%emt 0:00:30]} Nb4 {[%emt 0:04:30]} 9. Nge2 {[%emt 0:01:30]} O-O {[%emt 0:05:30]} 10. Bd2 {[%emt 0:17:30]} f6 {[%emt 0:05:30]} 11. exf6 {[%emt 0:04:30]} Nxf6 {[%emt 0:11:30]} 12. Na4 {[%emt 0:16:30]} Nxd3+ {[%emt 0:02:30]} 13. Qxd3 {[%emt 0:02:30]} Bd6 {[%emt 0:01:30]} 14. O-O-O {[%emt 0:07:30]} b5 {[%emt 0:08:30]} 15. Qxb5 {[%emt 0:04:30]} Rb8 {[%emt 0:03:30]} 16. Qd3 {[%emt 0:02:56]} Bd7 {[%emt 0:03:30]} 17. Nac3 {[%emt 0:00:52]} Ng4 {[%emt 0:02:30]} 18. Be3 {[%emt 0:03:21]} Qa5 {[%emt 0:02:30]} 19. Bd4 {[%emt 0:01:03]} Qb4 {[%emt 0:11:30]} 20. b3 {[%emt 0:03:43]} Nf6 {[%emt 0:03:55]} 21. Rhf1 {[%emt 0:00:39]} a5 {[%emt 0:00:32]} 22. g4 {[%emt 0:02:30]} Qa3+ {[%emt 0:01:42]} 23. Kb1 {[%emt 0:01:52]} a4 {[%emt 0:00:35]} 24. Nc1 {[%emt 0:00:45]} axb3 {[%emt 0:00:50]} 25. cxb3 {[%emt 0:00:11]} Ba4 {[%emt 0:03:04]} 26. Nxa4 {[%emt 0:01:38]} Qxa4 {[%emt 0:00:04]} 27. Bb2 {[%emt 0:00:01]} Qe4 {[%emt 0:01:15]} 28. Bxf6 {[%emt 0:02:23]} Qxd3+ {[%emt 0:00:06]} 29. Nxd3 {[%emt 0:00:25]} gxf6 {[%emt 0:01:36]} 30. Rfe1 {[%emt 0:00:21]} Rfe8 {[%emt 0:00:10]} 31. Rc1 {[%emt 0:00:06]} Rb6 {[%emt 0:00:19]} 32. g5 {[%emt 0:01:03]} Kf7 {[%emt 0:00:45]} 33. gxf6 {[%emt 0:00:13]} Kxf6 {[%emt 0:00:14]} 34. Re2 {[%emt 0:00:49]} Kf5 {[%emt 0:02:46]} 35. Rg1 {[%emt 0:00:01]} Re7 {[%emt 0:00:56]} 36. Rg5+ {[%emt 0:00:16]} Kf6 {[%emt 0:00:01]} 37. Rg8 {[%emt 0:00:17]} Kf7 {[%emt 0:00:36]} 38. Reg2 {[%emt 0:01:01]} e5 {[%emt 0:01:08]} 39. R8g7+ {[%emt 0:00:28]} Ke6 {[%emt 0:00:11]} 40. Rxe7+ {[%emt 0:00:18]} Bxe7 {[%emt 0:00:09]} 41. fxe5 {[%emt 0:00:34]} Bf8 {[%emt 0:01:47]} 42. Rf2 {[%emt 0:00:49]} Be7 {[%emt 0:00:13]} 43. Kb2 {[%emt 0:00:31]} d4 {[%emt 0:00:37]} 44. b4 {[%emt 0:00:31]} Kd5 {[%emt 0:01:11]} 45. Kb3 {[%emt 0:00:43]} Ke4 {[%emt 0:00:12]} 46. Rf7 {[%emt 0:00:32]} Bg5 {[%emt 0:00:47]} 47. Nc5+ {[%emt 0:00:32]} Ke3 {[%emt 0:02:40]} 48. e6 {[%emt 0:00:18]} 1-0

[Event "33rd Pula Open 2019"]
[Site "Pula"]
[Date "2019.06.27"]
[Round "7.15"]
[White "Purgar, Ivona"]
[Black "Grishchenko, Sergey"]
[Result "0-1"]
[ECO "B16"]
[WhiteElo "2194"]
[BlackElo "2411"]
[Annotator "NA"]
[PlyCount "58"]
[EventDate "2019.06.22"]
[EventType "swiss"]
[EventCountry "CRO"]
[SourceTitle "playchess.com"]
[Source "ChessBase"]
[SourceQuality "1"]
[TimeControl "5400+30"]

1. e4 {[%emt 0:00:30]} c6 {[%emt 0:00:30]} 2. d4 {[%emt 0:00:00]} d5 {[%emt 0:00:00]} 3. Nc3 {[%emt 0:00:00]} dxe4 {[%emt 0:00:00]} 4. Nxe4 {[%emt 0:00:00]} Nf6 {[%emt 0:00:30]} 5. Nxf6+ {[%emt 0:00:00]} gxf6 {[%emt 0:00:00]} 6. Bc4 {[%emt 0:01:30]} Bf5 {[%emt 0:02:00]} 7. Bf4 {[%emt 0:01:30]} Nd7 {[%emt 0:00:30]} 8. Nf3 {[%emt 0:00:30]} Nb6 {[%emt 0:05:30]} 9. Bb3 {[%emt 0:00:30]} a5 {[%emt 0:09:30]} 10. a4 {[%emt 0:08:30]} Nd5 {[%emt 0:21:30]} 11. Bg3 {[%emt 0:00:30]} e6 {[%emt 0:11:30]} 12. O-O {[%emt 0:02:30]} Be7 {[%emt 0:01:30]} 13. Re1 {[%emt 0:07:30]} Qb6 {[%emt 0:05:30]} 14. Nh4 {[%emt 0:06:30]} Bg6 {[%emt 0:02:30]} 15. c4 {[%emt 0:21:30]} Nb4 {[%emt 0:00:30]} 16. Nxg6 {[%emt 0:03:30]} hxg6 {[%emt 0:00:30]} 17. c5 {[%emt 0:21:30]} Qa6 {[%emt 0:04:30]} 18. Re3 {[%emt 0:16:02]} Rd8 {[%emt 0:06:30]} 19. Qg4 {[%emt 0:01:07]} Nd5 {[%emt 0:06:30]} 20. Bxd5 {[%emt 0:00:23]} Rxd5 {[%emt 0:01:10]} 21. Qf4 {[%emt 0:00:18]} O-O {[%emt 0:10:40]} 22. Qc7 {[%emt 0:03:34]} Bd8 {[%emt 0:00:45]} 23. Qf4 {[%emt 0:02:54]} Qc4 {[%emt 0:01:22]} 24. Qh6 {[%emt 0:00:29]} Qxd4 {[%emt 0:03:00]} 25. Bd6 {[%emt 0:00:31]} Re8 {[%emt 0:00:14]} 26. Rae1 {[%emt 0:00:34]} Rh5 {[%emt 0:01:41]} 27. Qf4 {[%emt 0:00:28]} Qxf4 {[%emt 0:00:09]} 28. Bxf4 {[%emt 0:00:04]} Rxc5 {[%emt 0:00:04]} 29. b3 {[%emt 0:00:57]} Rd5 {[%emt 0:00:25]} 0-1

[Event "33rd Pula Open 2019"]
[Site "Pula"]
[Date "2019.06.28"]
[Round "8.4"]
[White "Petran, Peter"]
[Black "Beletic, Daniel"]
[Result "0-1"]
[ECO "A25"]
[WhiteElo "2246"]
[BlackElo "2380"]
[Annotator "NA"]
[PlyCount "59"]
[EventDate "2019.06.22"]
[EventType "swiss"]
[EventCountry "CRO"]
[SourceTitle "playchess.com"]
[Source "ChessBase"]
[SourceQuality "1"]
[TimeControl "5400+30"]

1. g3 {[%emt 0:00:30]} e5 {[%emt 0:09:30]} 2. c4 {[%emt 0:00:00]} Nc6 {[%emt 0:00:30]} 3. Bg2 {[%emt 0:00:00]} Nf6 {[%emt 0:00:30]} 4. Nc3 {[%emt 0:00:30]} Bc5 {[%emt 0:00:30]} 5. e3 {[%emt 0:01:30]} d5 {[%emt 0:00:30]} 6. Nxd5 {[%emt 0:09:30]} Nxd5 {[%emt 0:00:30]} 7. cxd5 {[%emt 0:00:00]} Nb4 {[%emt 0:00:30]} 8. Ne2 {[%emt 0:03:00]} Nd3+ {[%emt 0:03:30]} 9. Kf1 {[%emt 0:00:30]} Qf6 {[%emt 0:00:30]} 10. f3 {[%emt 0:00:30]} O-O {[%emt 0:01:30]} 11. Nc3 {[%emt 0:00:30]} Bf5 {[%emt 0:03:30]} 12. Qe2 {[%emt 0:07:30]} e4 {[%emt 0:08:30]} 13. Kg1 {[%emt 0:01:30]} exf3 {[%emt 0:01:30]} 14. Bxf3 {[%emt 0:00:30]} Rfe8 {[%emt 0:02:30]} 15. Qf1 {[%emt 0:16:30]} Qh6 {[%emt 0:08:30]} 16. g4 {[%emt 0:03:30]} Qg6 {[%emt 0:33:30]} 17. h3 {[%emt 0:02:30]} h5 {[%emt 0:03:08]} 18. Rh2 {[%emt 0:02:30]} Ne5 {[%emt 0:03:39]} 19. Rg2 {[%emt 0:03:30]} hxg4 {[%emt 0:01:06]} 20. hxg4 {[%emt 0:00:30]} Bd3 {[%emt 0:05:19]} 21. Be2 {[%emt 0:00:00]} Rad8 {[%emt 0:01:15]} 22. Bxd3 {[%emt 0:18:00]} Nxd3 {[%emt 0:00:08]} 23. Qf5 {[%emt 0:00:30]} Qa6 {[%emt 0:00:30]} 24. Ne4 {[%emt 0:03:30]} Qc4 {[%emt 0:01:49]} 25. Ng5 {[%emt 0:06:42]} Qxd5 {[%emt 0:00:38]} 26. Qxd5 {[%emt 0:02:42]} Rxd5 {[%emt 0:00:08]} 27. Nf3 {[%emt 0:00:06]} Bb6 {[%emt 0:02:04]} 28. Kf1 {[%emt 0:00:30]} Rc5 {[%emt 0:00:24]} 29. Kg1 {[%emt 0:05:31]} Rd5 {[%emt 0:00:30]} 30. Kf1 {[%emt 0:00:59]} 0-1

[Event "33rd Pula Open 2019"]
[Site "Pula"]
[Date "2019.06.28"]
[Round "8.5"]
[White "Jazdanovs, Aleksandrs"]
[Black "Biti, Ozren"]
[Result "1/2-1/2"]
[ECO "C41"]
[WhiteElo "2232"]
[BlackElo "2374"]
[Annotator "NA"]
[PlyCount "103"]
[EventDate "2019.06.22"]
[EventType "swiss"]
[EventCountry "CRO"]
[SourceTitle "playchess.com"]
[Source "ChessBase"]
[SourceQuality "1"]
[TimeControl "5400+30"]

1. e4 {[%emt 0:00:30]} d6 {[%emt 0:00:30]} 2. d4 {[%emt 0:00:00]} Nf6 {[%emt 0:00:00]} 3. Nc3 {[%emt 0:00:00]} e5 {[%emt 0:00:00]} 4. Nf3 {[%emt 0:00:30]} Nbd7 {[%emt 0:00:30]} 5. Bc4 {[%emt 0:00:30]} Be7 {[%emt 0:00:30]} 6. a4 {[%emt 0:01:30]} O-O {[%emt 0:00:30]} 7. O-O {[%emt 0:00:30]} a5 {[%emt 0:00:30]} 8. Re1 {[%emt 0:06:30]} c6 {[%emt 0:00:30]} 9. h3 {[%emt 0:01:30]} exd4 {[%emt 0:01:30]} 10. Qxd4 {[%emt 0:00:00]} Nc5 {[%emt 0:00:30]} 11. Bf4 {[%emt 0:01:00]} Ne8 {[%emt 0:00:30]} 12. Rad1 {[%emt 0:02:30]} Ne6 {[%emt 0:02:30]} 13. Bxe6 {[%emt 0:00:30]} fxe6 {[%emt 0:00:30]} 14. Qe3 {[%emt 0:13:30]} Qc7 {[%emt 0:18:30]} 15. Bg5 {[%emt 0:04:30]} e5 {[%emt 0:03:30]} 16. Bxe7 {[%emt 0:06:30]} Qxe7 {[%emt 0:02:30]} 17. Rd3 {[%emt 0:00:30]} Be6 {[%emt 0:07:30]} 18. Red1 {[%emt 0:02:30]} Kh8 {[%emt 0:07:30]} 19. b3 {[%emt 0:03:30]} Bf7 {[%emt 0:05:30]} 20. Ne2 {[%emt 0:06:30]} Bg6 {[%emt 0:05:30]} 21. Ng3 {[%emt 0:04:30]} h6 {[%emt 0:10:30]} 22. c4 {[%emt 0:01:30]} c5 {[%emt 0:02:30]} 23. Nd2 {[%emt 0:10:30]} Ra6 {[%emt 0:01:30]} 24. Nb1 {[%emt 0:00:30]} Nc7 {[%emt 0:01:30]} 25. Nf5 {[%emt 0:07:30]} Bxf5 {[%emt 0:00:30]} 26. exf5 {[%emt 0:01:30]} Ne8 {[%emt 0:10:25]} 27. g4 {[%emt 0:01:30]} Rb6 {[%emt 0:02:16]} 28. Nd2 {[%emt 0:06:30]} Nf6 {[%emt 0:02:34]} 29. Ne4 {[%emt 0:01:47]} Nxe4 {[%emt 0:00:26]} 30. Qxe4 {[%emt 0:00:06]} Qf6 {[%emt 0:00:41]} 31. Qe3 {[%emt 0:01:11]} Ra6 {[%emt 0:01:09]} 32. Qd2 {[%emt 0:00:14]} Rd8 {[%emt 0:01:01]} 33. Rd5 {[%emt 0:00:06]} Qh4 {[%emt 0:04:05]} 34. Kg2 {[%emt 0:01:12]} h5 {[%emt 0:01:37]} 35. f3 {[%emt 0:00:47]} Rb6 {[%emt 0:01:32]} 36. Rd3 {[%emt 0:03:19]} e4 {[%emt 0:01:27]} 37. fxe4 {[%emt 0:00:11]} hxg4 {[%emt 0:00:15]} 38. Rg3 {[%emt 0:00:08]} d5 {[%emt 0:01:04]} 39. Rxg4 {[%emt 0:01:24]} Qh5 {[%emt 0:00:28]} 40. Qxa5 {[%emt 0:00:35]} Rdd6 {[%emt 0:01:04]} 41. Qc3 {[%emt 0:03:13]} d4 {[%emt 0:01:26]} 42. Qg3 {[%emt 0:00:05]} Rh6 {[%emt 0:00:38]} 43. Rd2 {[%emt 0:01:46]} Qf7 {[%emt 0:00:22]} 44. Rf2 {[%emt 0:01:45]} Rbf6 {[%emt 0:00:39]} 45. Rg5 {[%emt 0:01:06]} g6 {[%emt 0:01:41]} 46. Rxg6 {[%emt 0:00:58]} Rhxg6 {[%emt 0:00:18]} 47. fxg6 {[%emt 0:00:03]} Rxf2+ {[%emt 0:00:12]} 48. Qxf2 {[%emt 0:00:13]} Qxg6+ {[%emt 0:00:13]} 49. Kf3 {[%emt 0:04:37]} Qh5+ {[%emt 0:00:34]} 50. Kg3 {[%emt 0:02:04]} Qg6+ {[%emt 0:00:21]} 51. Kf3 {[%emt 0:00:12]} Qh5+ {[%emt 0:00:29]} 52. Kg3 {[%emt 0:01:18]} 1/2-1/2